bitfinex-derivatives/quotes_ETHF0:USTF0_20260221
["timestamp","ask_amount","ask_price","bid_price","bid_amount"]
[1771678353672,1.54142861,1975.1,1974.6,1.55921958]
[1771678353866,7.31610036,1975.0,1974.6,1.55921958]
[1771678354170,5.77467175,1974.9,1974.6,1.55921958]
[1771678354468,0.00379213,1974.9,1974.6,1.55921958]
[1771678355068,1.54522074,1974.9,1974.6,1.55921958]
[1771678355271,0.00379213,1974.9,1974.6,1.55921958]
[1771678356871,1.54142861,1975.2,1974.6,1.55921958]
[1771678357167,1.54142861,1975.1,1974.6,1.55921958]
[1771678357668,1.44012008,1975.4,1974.7,1.64255518]
[1771678357871,1.44012008,1975.2,1974.8,1.43472326]
[1771678358371,1.44012008,1975.3,1974.8,1.43472326]
[1771678361368,0.00650528,1975.4,1974.8,1.43472326]
[1771678361570,1.44662536,1975.4,1975.0,1.43472326]
[1771678363775,1.44662536,1975.4,1974.8,1.43472326]
[1771678366875,1.44662536,1975.4,1975.1,1.43472326]
[1771678367475,1.44662536,1975.4,1975.0,3.07727844]
[1771678367774,1.44662536,1975.4,1975.0,1.43472326]
[1771678370585,1.44662536,1975.4,1975.0,3.07727844]
[1771678370878,1.44662536,1975.4,1975.1,1.42908333]
[1771678371078,0.00650528,1975.4,1975.1,1.42908333]
[1771678372575,1.44012008,1975.8,1975.3,1.43472326]
[1771678372772,1.44012008,1975.8,1975.5,1.4269548]
[1771678373478,1.44523623,1975.8,1975.5,1.4269548]
[1771678374181,0.00511615,1975.8,1975.5,1.4269548]
[1771678374382,1.44523623,1975.8,1975.1,1.41889325]
[1771678376276,1.44523623,1975.8,1975.2,1.36872417]
[1771678381387,1.44523623,1975.8,1975.4,1.30463174]
[1771678381989,0.00511615,1975.8,1975.4,1.30463174]
[1771678382286,1.44523623,1975.8,1975.4,1.30463174]
[1771678386796,0.00511615,1975.8,1975.4,1.30463174]
[1771678387496,1.44523623,1975.8,1975.4,1.30463174]
[1771678390700,0.00511615,1975.8,1975.4,1.30463174]
[1771678391304,1.33058732,1975.8,1975.4,1.30463174]
[1771678392101,0.00511615,1975.8,1975.4,1.30463174]
[1771678393406,1.33058732,1975.8,1975.4,1.30463174]
[1771678397108,0.00511615,1975.8,1975.4,2.94718692]
[1771678397507,0.00511615,1975.8,1975.5,1.22484794]
[1771678398107,1.33058732,1975.8,1975.2,1.21566707]
[1771678400812,1.32547117,1975.6,1975.2,1.21566707]
[1771678402215,1.32547117,1975.7,1975.2,1.21566707]
[1771678403214,1.32547117,1975.7,1975.3,1.20183926]
[1771678406818,1.33058732,1975.8,1975.3,1.20183926]
[1771678407117,5.69612958,1975.7,1975.3,1.20183926]
[1771678407314,1.33058732,1975.8,1975.3,1.20183926]
[1771678411919,0.00511615,1975.8,1975.3,1.20183926]
[1771678412223,1.33058732,1975.8,1975.3,1.20183926]
[1771678415628,0.00511615,1975.8,1975.3,1.20183926]
[1771678416424,1.33058732,1975.8,1975.3,1.20183926]
[1771678419336,1.33058732,1975.8,1975.2,1.03586708]
[1771678419927,1.33058732,1975.8,1975.1,1.02641842]
[1771678424729,1.33058732,1975.8,1975.3,0.97312451]
[1771678424935,0.00511615,1975.8,1975.3,0.97312451]
[1771678425434,1.13001514,1975.8,1975.3,0.97312451]
[1771678431439,1.13001514,1975.8,1975.2,0.88902338]
[1771678436241,1.13001514,1975.8,1975.1,6.37493668]
[1771678436831,1.13001514,1975.8,1975.2,0.87212033]
[1771678438940,1.13001514,1975.8,1975.2,7.24705701]
[1771678439142,1.13001514,1975.8,1975.3,0.83064037]
[1771678444850,1.13001514,1975.8,1975.2,0.74245338]
[1771678445150,1.13001514,1975.8,1975.1,6.37493668]
[1771678445353,1.13001514,1975.8,1975.1,7.11739006]
[1771678446557,1.13001514,1975.8,1975.0,8.37493668]
[1771678446758,1.13001514,1975.8,1975.0,9.10567534]
[1771678447458,1.13001514,1975.8,1975.1,0.72202138]
[1771678448856,1.13001514,1975.8,1975.0,7.09241598]
[1771678450854,1.13001514,1975.8,1975.1,0.70585588]
[1771678453865,1.13001514,1975.8,1975.2,2.68371429]
[1771678454763,1.13001514,1975.8,1975.2,0.68371429]
[1771678463075,1.13001514,1975.8,1975.3,2.0]
[1771678463473,1.13001514,1975.8,1975.3,0.60444851]
[1771678467674,1.13001514,1975.8,1975.4,1.64035947]
[1771678467974,1.13001514,1975.8,1975.5,0.55964501]
[1771678469270,1.13001514,1975.8,1975.4,2.18902036]
[1771678471772,1.13001514,1975.8,1975.5,0.52147402]
[1771678472582,1.13001514,1975.8,1975.4,2.16196541]
[1771678477382,0.00511615,1975.8,1975.5,0.47618052]
[1771678477983,0.85960652,1975.8,1975.5,0.47618052]
[1771678478179,0.85960652,1975.8,1975.4,1.64035947]
[1771678478484,0.85960652,1975.8,1975.4,2.10973267]
[1771678478785,0.85960652,1975.8,1975.4,1.64035947]
[1771678478980,0.85960652,1975.8,1975.4,2.10025009]
[1771678481686,4.24597841,1976.1,1975.6,2.07354896]
[1771678481887,0.85449037,1976.0,1975.7,0.91855407]
[1771678482677,0.85945052,1976.0,1975.7,0.92411855]
[1771678489595,0.85945052,1976.0,1975.7,0.00556448]
[1771678490993,0.85945052,1976.0,1975.7,0.92411855]
[1771678493897,0.00496015,1976.0,1975.7,0.92411855]
[1771678494589,0.85945052,1976.0,1975.7,0.92411855]
[1771678495897,0.85945052,1976.0,1975.7,0.00556448]
[1771678496287,0.85945052,1976.0,1975.5,0.91855407]
[1771678496496,0.85945052,1976.0,1975.3,0.91855407]
[1771678496788,0.85945052,1976.0,1975.3,2.55891354]
[1771678497295,0.85945052,1976.0,1975.4,0.91855407]
[1771678497687,0.85449037,1975.7,1975.3,0.00527501]
[1771678497893,0.85449037,1975.7,1975.3,0.92382908]
[1771678498294,0.85449037,1975.7,1975.3,0.00527501]
[1771678503504,0.85449037,1975.7,1975.3,0.92382908]
[1771678508409,0.85449037,1975.7,1975.3,2.56418855]
[1771678512211,0.85449037,1975.7,1975.4,0.82584216]
[1771678515819,0.00496015,1976.0,1975.5,1.64035947]
[1771678516016,0.81415741,1976.0,1975.3,0.83111717]
[1771678518220,0.81415741,1976.0,1975.4,2.46620163]
[1771678521719,0.81415741,1976.0,1975.5,0.82584216]
[1771678528725,0.81415741,1976.0,1975.4,0.82584216]
[1771678529128,0.81415741,1976.0,1975.3,0.83111717]
[1771678539935,0.81415741,1976.0,1975.4,0.71486165]
[1771678541031,0.00496015,1976.0,1975.4,7.08979833]
[1771678541235,0.77214148,1976.0,1975.5,0.71486165]
[1771678551642,0.77214148,1976.0,1975.3,0.00527501]
[1771678551643,0.77214148,1976.0,1975.3,7.09507334]
[1771678551842,0.77214148,1976.0,1975.3,0.00527501]
[1771678552039,5.01488515,1976.0,1975.3,0.00527501]
[1771678552248,0.76718133,1975.9,1975.3,0.00527501]
[1771678556640,0.76718133,1975.9,1975.1,0.71486165]
[1771678556940,0.76718133,1975.8,1974.6,0.71486165]
[1771678557145,0.76718133,1975.8,1974.5,6.37493668]
[1771678557146,0.76718133,1975.5,1974.5,0.71486165]
[1771678557344,0.76718133,1975.5,1974.5,2.71486165]
[1771678557540,0.76718133,1975.5,1974.6,0.71486165]
[1771678557741,0.76718133,1975.5,1974.6,0.72122765]
[1771678562741,0.76718133,1975.5,1974.6,0.006366]
[1771678566452,0.76718133,1975.5,1974.6,0.72122765]
[1771678570756,0.76718133,1975.5,1974.8,0.60387374]
[1771678571854,0.62052538,1975.9,1974.8,0.60387374]
[1771678575058,0.62052538,1975.9,1975.0,0.60387374]
[1771678584972,0.62052538,1975.9,1975.3,0.60387374]
[1771678585572,0.62548553,1976.0,1975.3,0.60387374]
[1771678587870,0.62548553,1976.0,1975.5,2.24375969]
[1771678590474,0.62548553,1976.0,1975.6,0.60387374]
[1771678590676,0.62548553,1976.0,1975.5,1.63988595]
[1771678590866,0.62548553,1976.0,1975.5,2.24375969]
[1771678591175,0.62548553,1976.0,1975.6,0.60387374]
[1771678614196,0.56506635,1975.9,1975.6,0.60387374]
[1771678617500,0.5700265,1976.0,1975.6,0.60387374]
[1771678617702,4.82277551,1976.0,1975.6,0.60387374]
[1771678617901,0.56506635,1975.9,1975.6,0.60387374]
[1771678619402,4.82277551,1976.0,1975.6,0.60387374]
[1771678620394,0.56506635,1976.1,1975.8,0.5998598]
[1771678621398,0.57108995,1976.1,1975.8,0.5998598]
[1771678629504,0.0060236,1976.1,1975.8,0.5998598]
[1771678630002,0.60614217,1976.1,1975.8,0.5998598]
[1771678635114,0.0060236,1976.1,1975.8,0.5998598]
[1771678635911,0.60614217,1976.1,1975.8,0.5998598]
[1771678639518,0.0060236,1976.1,1975.8,0.5998598]
[1771678639713,0.60011857,1976.2,1975.8,0.5998598]
[1771678639714,0.60011857,1976.7,1976.0,0.5491067]
[1771678639922,0.60011857,1976.5,1975.8,2.18899265]
[1771678640311,0.60011857,1976.5,1975.8,4.18899265]
[1771678640515,0.60011857,1976.5,1975.9,0.5491067]
[1771678640719,0.60483206,1976.5,1975.9,0.55432035]
[1771678645237,0.60011857,1976.3,1975.9,0.55432035]
[1771678646529,0.60011857,1976.1,1975.7,0.5491067]
[1771678647336,4.85286758,1976.1,1975.7,0.5491067]
[1771678647634,4.85286758,1976.1,1975.7,0.55367239]
[1771678648131,0.60011857,1976.0,1975.7,0.55367239]
[1771678652037,0.60011857,1975.9,1975.7,0.00456569]
[1771678655643,0.60011857,1975.9,1975.6,0.5491067]
[1771678656047,4.85286758,1975.9,1975.6,0.5491067]
[1771678656550,4.85286758,1975.9,1975.6,0.55346733]
[1771678660054,4.25274901,1975.9,1975.6,0.55346733]
[1771678660553,4.79828255,1975.9,1975.6,0.55346733]
[1771678665458,0.54553354,1975.8,1975.6,0.55346733]
[1771678666257,0.54553354,1975.8,1975.6,0.00436063]
[1771678669066,0.54553354,1975.8,1975.6,0.5769192]
[1771678669364,0.54553354,1976.4,1975.6,0.5769192]
[1771678669562,0.54553354,1976.3,1975.6,0.5769192]
[1771678674671,0.54553354,1976.1,1975.6,0.5769192]
[1771678679776,4.79828255,1976.0,1975.6,0.5769192]
[1771678679973,0.54553354,1976.0,1975.6,0.5769192]
[1771678684875,4.25274901,1975.9,1975.6,0.5769192]
[1771678685075,0.54553354,1976.0,1975.6,0.5769192]
[1771678701284,0.55344531,1976.2,1975.6,0.5769192]
[1771678708991,0.55344531,1976.4,1975.8,1.63975314]
[1771678709294,0.55344531,1976.4,1975.9,0.54825561]
[1771678710089,0.55344531,1976.4,1976.0,0.54825561]
[1771678714099,0.31599731,1976.7,1976.0,4.79056744]
[1771678714698,0.31599731,1976.7,1976.0,0.54825561]
[1771678714899,0.31599731,1976.7,1975.9,5.88151234]
[1771678715199,0.32188369,1976.7,1975.9,6.42976795]
[1771678716000,0.32188369,1976.7,1975.9,2.18745612]
[1771678716195,0.32188369,1976.7,1975.7,6.37914527]
[1771678716196,0.32188369,1976.7,1975.7,4.79056744]
[1771678716393,0.31658593,1976.5,1975.7,2.18745612]
[1771678720304,0.31658593,1976.5,1975.8,0.59013032]
[1771678726206,0.30960728,1976.4,1975.8,0.59013032]
[1771678729407,0.31020447,1976.3,1975.8,0.59013032]
[1771678730205,0.31020447,1976.3,1975.7,0.59013032]
[1771678736106,0.3064338,1976.4,1975.7,2.22933083]
[1771678736307,0.3064338,1976.4,1975.8,0.59013032]
[1771678746115,4.55851516,1976.4,1975.8,0.59013032]
[1771678747218,0.30979301,1976.3,1975.8,0.59013032]
[1771678760334,4.25208136,1976.4,1975.8,0.59013032]
[1771678760529,0.31178562,1976.3,1975.8,0.59013032]
[1771678767339,4.55626395,1976.4,1975.8,0.59013032]
[1771678768645,0.30418259,1976.4,1975.8,0.59013032]
[1771678769048,4.54223706,1976.5,1975.8,0.59013032]
[1771678769545,4.25208136,1976.5,1976.0,0.55166233]
[1771678769943,0.58126409,1976.6,1976.0,0.55166233]
[1771678796762,0.58126409,1976.6,1975.9,4.81694404]
[1771678797070,0.58126409,1976.6,1975.9,0.56896628]
[1771678797365,0.58126409,1976.6,1976.0,0.56896628]
[1771678800963,0.58126409,1976.6,1976.1,0.56896628]
[1771678801463,0.58126409,1976.6,1975.9,4.24797776]
[1771678801671,0.58126409,1976.6,1975.7,4.81694404]
[1771678802267,0.58126409,1976.6,1975.7,0.56896628]
[1771678821580,0.56750414,1976.3,1975.7,0.56896628]
[1771678822980,0.56750414,1976.3,1975.6,0.00436063]
[1771678831886,0.56750414,1975.9,1975.6,0.00436063]
[1771678832479,0.56750414,1975.9,1975.4,0.55941219]
[1771678833591,0.56750414,1975.9,1975.4,0.56494242]
[1771678833991,0.56750414,1975.9,1975.4,0.00553023]
[1771678834294,0.56750414,1975.7,1975.4,0.00553023]
[1771678834487,0.56750414,1975.7,1975.1,0.55941219]
[1771678835485,0.56750414,1975.7,1975.1,0.56413972]
[1771678840094,0.56750414,1975.7,1975.1,0.00472753]
[1771678840996,0.56750414,1975.7,1975.1,0.58280809]
[1771678844895,0.55843988,1976.0,1975.3,0.57808056]
[1771678848810,0.55843988,1976.0,1975.5,0.57808056]
[1771678854617,0.55843988,1975.8,1975.2,0.57808056]
[1771678871932,0.55843988,1975.8,1975.3,0.58250042]
[1771678885440,0.55843988,1975.8,1975.2,4.82885504]
[1771678885932,0.55843988,1975.8,1975.2,0.58385528]
[1771678886538,0.55843988,1975.8,1975.2,4.82885504]
[1771678889641,0.55843988,1975.8,1975.2,4.83248252]
[1771678891142,0.55843988,1975.8,1975.3,0.57506344]
[1771678896042,4.8324293,1976.0,1975.3,0.57506344]
[1771678896247,4.8324293,1976.0,1975.4,0.57047532]
[1771678897544,0.58038152,1976.0,1975.4,0.57047532]
[1771678898254,0.58038152,1976.0,1975.3,4.81619098]
[1771678898453,0.58489075,1975.9,1975.3,4.81619098]
[1771678899144,0.58489075,1975.9,1975.2,4.81848147]
[1771678899446,0.58489075,1975.8,1975.2,0.56985423]
[1771678926072,0.58489075,1975.9,1975.3,0.56985423]
[1771678938278,0.58489075,1975.9,1975.4,0.54656398]
[1771678938479,0.54889649,1976.1,1975.4,0.54656398]
[1771678949182,0.54889649,1976.1,1975.5,0.54656398]
[1771678949480,0.54889649,1976.2,1975.6,0.54656398]
[1771678949686,0.54889649,1976.4,1975.6,0.54656398]
[1771678950284,0.54889649,1976.4,1975.7,0.54656398]
[1771678951890,0.54889649,1976.4,1975.6,4.24862724]
[1771678951891,0.54889649,1976.4,1975.9,0.54656398]
[1771678952888,0.54889649,1976.4,1975.8,1.63934881]
[1771678953093,0.54889649,1976.2,1975.5,4.79519122]
[1771678953286,0.54889649,1976.2,1975.5,0.54656398]
[1771678982314,4.80094427,1976.2,1975.5,0.54656398]
[1771678982521,4.81954355,1976.2,1975.5,0.54656398]
[1771678982718,0.56749577,1976.4,1975.9,0.54844931]
[1771678998534,0.56749577,1976.4,1975.8,1.63934881]
[1771678998736,0.56749577,1976.4,1975.8,2.20050557]
[1771678998935,0.56749577,1976.4,1975.9,0.56115676]
[1771679002935,0.56749577,1976.4,1975.8,0.56115676]
[1771679009740,0.56749577,1976.4,1975.7,4.23736637]
[1771679009941,1.63934881,1976.5,1975.6,0.56115676]
[1771679009942,0.54932042,1976.0,1975.6,0.56115676]
[1771679010245,0.54932042,1976.0,1975.4,4.23736637]
[1771679010545,0.54932042,1976.0,1975.5,0.56115676]
[1771679019854,0.54932042,1976.0,1975.5,4.79852313]
[1771679020246,0.54932042,1976.0,1975.5,0.56115676]
[1771679024949,0.54932042,1976.0,1975.4,4.23736637]
[1771679025155,0.54932042,1976.0,1975.4,4.81897322]
[1771679025354,0.54932042,1976.0,1975.4,4.23736637]
[1771679025548,0.54932042,1976.0,1975.3,0.58160685]
[1771679027753,0.54932042,1976.0,1975.1,4.81780934]
[1771679028355,0.54932042,1976.0,1975.2,0.57571544]
[1771679029057,0.54932042,1976.0,1975.1,4.2420939]
[1771679029458,0.54932042,1976.0,1975.1,4.82370075]
[1771679029958,0.54932042,1976.0,1975.2,0.58160685]
[1771679032158,1.64013089,1976.2,1975.1,0.00472753]
[1771679032159,0.56964032,1975.8,1975.1,0.00472753]
[1771679032458,0.56964032,1975.8,1975.1,0.58633438]
[1771679036865,0.56964032,1975.8,1975.1,0.00472753]
[1771679037465,0.56964032,1975.8,1975.1,0.58633438]
[1771679043670,0.56964032,1975.9,1975.1,0.58633438]
[1771679044766,0.56964032,1975.8,1975.1,0.00472753]
[1771679044971,0.56964032,1975.7,1975.1,0.00472753]
[1771679046467,0.56964032,1975.6,1974.8,0.58160685]
[1771679047472,0.56964032,1975.6,1974.8,0.58761669]
[1771679061182,4.81737397,1975.6,1974.8,0.58761669]
[1771679061482,0.56709402,1975.5,1974.8,0.58761669]
[1771679070981,0.56709402,1975.5,1974.8,0.00600984]
[1771679071183,0.56709402,1975.4,1974.8,0.00600984]
[1771679071388,4.81482767,1975.4,1974.8,0.00600984]
[1771679071588,0.56709402,1975.3,1974.8,0.00600984]
[1771679071785,0.57184333,1975.3,1974.6,0.58584861]
[1771679072985,0.57184333,1975.3,1974.6,0.59074364]
[1771679073887,0.56709402,1975.2,1974.6,0.59074364]
[1771679074287,0.56709402,1975.2,1974.6,4.82811001]
[1771679077188,0.56709402,1975.2,1974.7,0.58584861]
[1771679079490,0.57452782,1975.3,1974.7,0.58584861]
[1771679090893,0.56977851,1975.2,1974.6,4.2422614]
[1771679091094,0.56977851,1975.2,1974.6,0.60008706]
[1771679092697,0.56977851,1975.2,1974.6,0.00489503]
[1771679092893,0.56977851,1975.0,1974.6,0.00489503]
[1771679094402,0.56977851,1974.9,1974.4,0.59519203]
[1771679095395,0.56977851,1974.9,1974.4,0.00617181]
[1771679096098,0.56977851,1974.9,1974.4,0.60136384]
[1771679100903,0.56977851,1975.1,1974.5,0.59519203]
[1771679101799,0.57452782,1975.3,1974.9,0.59519203]
[1771679102007,0.00474931,1975.3,1974.9,0.59519203]
[1771679102203,0.56977851,1975.6,1975.0,1.64176857]
[1771679102400,0.56977851,1975.6,1974.6,1.64176857]
[1771679102401,0.56977851,1975.6,1974.9,0.59519203]
[1771679103204,0.57605878,1975.6,1974.9,0.59519203]
[1771679105010,0.57605878,1975.6,1975.1,0.59519203]
[1771679107720,0.56436654,1975.8,1975.3,0.5998409]
[1771679108514,0.56436654,1976.2,1975.3,0.5998409]
[1771679108816,0.56956489,1976.2,1975.3,0.5998409]
[1771679110716,0.54555805,1976.0,1975.3,0.5998409]
[1771679122430,2.18732662,1976.0,1975.3,0.5998409]
[1771679122633,0.54555805,1975.9,1975.2,1.64176857]
[1771679122833,0.54555805,1975.9,1975.1,0.5530436]
[1771679131140,0.54555805,1975.9,1975.2,0.55358485]
[1771679138144,0.54555805,1975.9,1975.3,0.55543297]
[1771679146946,0.55468804,1975.8,1975.2,0.55328161]
[1771679162267,0.55468804,1975.9,1975.3,0.55981925]
[1771679168370,0.55468804,1975.9,1975.4,0.56537057]
[1771679171579,0.55468804,1975.9,1975.3,0.5584389]
[1771679178681,0.55468804,1975.9,1975.3,4.79491906]
[1771679178876,0.55468804,1975.9,1975.4,0.5584389]
[1771679179377,0.55468804,1975.9,1975.3,4.23648016]
[1771679179583,0.55468804,1975.9,1975.3,0.5584389]
[1771679190689,0.55468804,1975.9,1975.2,4.23648016]
[1771679190892,0.54470133,1975.8,1975.1,4.23648016]
[1771679191394,0.54470133,1975.8,1975.0,4.79491906]
[1771679193094,0.54470133,1975.8,1975.1,0.55579165]
[1771679193898,0.54470133,1975.8,1975.0,4.23648016]
[1771679194292,0.54470133,1975.8,1975.0,4.79227181]
[1771679195895,0.54470133,1975.6,1975.0,4.79227181]
[1771679196096,0.54470133,1975.6,1975.1,0.5584389]
[1771679221014,0.54470133,1975.6,1975.0,4.23648016]
[1771679221314,0.58289368,1975.4,1974.8,4.23648016]
[1771679221518,0.58289368,1975.4,1974.8,4.80811195]
[1771679221818,0.58289368,1975.0,1974.6,4.23648016]
[1771679222016,0.58289368,1975.0,1974.5,0.57163179]
[1771679222216,0.58289368,1975.0,1974.4,0.5778036]
[1771679229123,0.58289368,1975.0,1974.6,0.55545077]
[1771679243138,0.58289368,1975.0,1974.5,2.21821769]
[1771679243339,0.58289368,1975.0,1974.6,0.57710082]
[1771679247546,0.56617793,1975.3,1974.8,0.57710082]
[1771679247743,0.56617793,1975.3,1975.0,0.57710082]
[1771679247939,0.55172121,1975.3,1974.7,1.64111687]
[1771679248236,0.55172121,1975.3,1974.5,2.21821769]
[1771679248839,0.55172121,1975.3,1974.6,0.57710082]
[1771679268657,0.55172121,1975.3,1974.6,4.82624576]
[1771679268855,0.5636458,1975.4,1974.7,0.56570426]
[1771679269056,0.5636458,1975.4,1974.8,0.56570426]
[1771679280164,4.24851147,1975.6,1974.8,0.56570426]
[1771679280362,0.5636458,1975.5,1975.0,0.56570426]
[1771679283765,0.5636458,1975.5,1975.1,0.55549673]
[1771679286966,0.5636458,1975.7,1975.1,0.55549673]
[1771679312293,0.5636458,1975.7,1975.1,4.80541961]
[1771679317100,0.5636458,1975.7,1975.2,0.55231711]
[1771679318294,0.5636458,1975.7,1975.3,0.56637188]
[1771679323201,0.5636458,1975.7,1975.4,2.21234264]
[1771679323602,0.58996842,1975.9,1975.5,0.57155502]
[1771679327404,5.2659037,1976.1,1975.5,0.57155502]
[1771679327610,0.58996842,1976.0,1975.5,0.57155502]
[1771679329308,0.58996842,1976.0,1975.4,2.21078834]
[1771679331313,0.58996842,1976.0,1975.5,0.56981562]
[1771679336314,0.58996842,1976.0,1975.4,2.21098906]
[1771679340621,0.58996842,1976.0,1975.5,0.57113648]
[1771679342425,0.58996842,1976.0,1975.4,2.2119415]
[1771679345323,0.58996842,1976.0,1975.4,0.57115388]
[1771679346626,0.58996842,1975.9,1975.4,0.57115388]
[1771679347527,0.58996842,1975.9,1975.2,6.47062763]
[1771679347723,0.58996842,1975.9,1975.3,0.57620986]
[1771679352736,0.58996842,1975.9,1975.4,0.57353357]
[1771679378459,4.25183541,1976.0,1975.4,0.57353357]
[1771679378665,1.593722,1976.1,1975.4,0.57353357]
[1771679379464,1.593722,1976.1,1975.5,0.56508556]
[1771679380066,0.58045119,1976.3,1975.7,0.56508556]
[1771679381164,0.58458492,1976.3,1975.7,0.56508556]
[1771679386370,0.00413373,1976.3,1975.7,0.56508556]
[1771679392670,4.25183541,1976.6,1976.0,0.56508556]
[1771679392671,0.58045119,1976.5,1976.0,0.56508556]
[1771679392972,0.58045119,1976.8,1976.0,0.56508556]
[1771679393679,0.58635982,1976.8,1976.0,0.57114593]
[1771679394879,0.58635982,1976.8,1976.2,0.56508556]
[1771679400983,0.58635982,1976.8,1976.1,0.56508556]
[1771679404487,0.58635982,1976.8,1976.0,0.00606037]
[1771679404780,0.58635982,1976.8,1976.0,0.57114593]
[1771679409786,0.58635982,1976.8,1976.0,0.58459358]
[1771679421096,4.83819523,1976.8,1976.0,4.83195018]
[1771679421394,0.54616822,1976.7,1976.1,0.57853321]
[1771679447016,0.54616822,1976.7,1976.0,4.24954661]
[1771679447516,0.54616822,1976.7,1976.0,4.84322485]
[1771679448517,0.54616822,1976.7,1976.1,0.59367824]
[1771679449021,0.54737553,1976.3,1975.9,0.51208815]
[1771679449219,0.54737553,1976.3,1975.8,0.51208815]
[1771679450123,0.54737553,1976.3,1975.8,0.51779181]
[1771679454828,0.54737553,1976.1,1975.8,0.00570366]
[1771679462325,0.54737553,1976.3,1975.8,0.55385798]
[1771679462533,0.54737553,1976.5,1975.9,0.54815432]
[1771679478940,0.54737553,1976.5,1975.8,1.64482039]
[1771679479139,0.54737553,1976.5,1975.8,2.19597512]
[1771679480939,0.56605096,1976.4,1975.8,0.00570366]
[1771679485143,2.20516769,1976.4,1975.8,0.00570366]
[1771679485443,0.56605096,1976.3,1975.8,0.00570366]
[1771679487740,0.56605096,1976.3,1975.6,0.55005909]
[1771679488743,0.56605096,1976.3,1975.6,0.00536833]
[1771679489638,0.56605096,1976.1,1975.6,0.00536833]
[1771679495444,0.56605096,1976.1,1975.6,0.5620533]
[1771679496144,0.56605096,1976.1,1975.6,0.00536833]
[1771679497048,0.56605096,1976.1,1975.6,2.20117003]
[1771679497448,0.56605096,1976.3,1975.9,0.55668497]
[1771679498048,0.56605096,1976.3,1975.6,1.64448506]
[1771679498248,0.56605096,1976.3,1975.7,0.55622199]
[1771679513263,0.57569683,1976.2,1975.7,0.55622199]
[1771679514359,0.57569683,1976.2,1975.6,0.00536833]
[1771679514560,4.81643838,1976.2,1975.6,0.00536833]
[1771679514757,0.57569683,1976.1,1975.4,3.02699563]
[1771679514963,0.04226568,1975.9,1975.2,0.55622199]
[1771679515762,0.04226568,1975.8,1975.2,0.5601675]
[1771679518963,0.04226568,1975.8,1975.2,0.00394551]
[1771679519863,0.04226568,1975.8,1975.1,0.5847719]
[1771679520065,0.03795718,1975.7,1974.8,0.5847719]
[1771679520973,0.03795718,1975.7,1974.8,0.59131842]
[1771679521766,4.27869873,1975.7,1974.8,0.59131842]
[1771679521973,0.02946999,1975.5,1974.8,0.59131842]
[1771679544388,0.02482259,1975.4,1974.8,0.59131842]
[1771679544687,0.03116618,1975.4,1974.8,0.59131842]
[1771679548190,4.27190773,1975.4,1974.8,0.59131842]
[1771679549884,4.24708514,1975.4,1974.8,0.59131842]
[1771679550090,4.26299406,1975.2,1974.8,0.02325095]
[1771679550290,0.56001629,1975.1,1974.8,0.02325095]
[1771679550484,0.56001629,1975.1,1974.3,0.54393316]
[1771679551591,0.56001629,1975.1,1974.3,0.54977931]
[1771679568805,4.80140359,1975.2,1974.7,0.59386521]
[1771679569000,0.54982718,1975.2,1974.7,0.59386521]
[1771679573206,0.54982718,1975.1,1974.7,0.59386521]
[1771679575510,0.54982718,1975.1,1974.4,0.59386521]
[1771679577210,0.54982718,1975.0,1974.4,0.59386521]
[1771679595730,0.59402578,1974.7,1974.3,0.60271732]
[1771679596033,0.59402578,1974.7,1974.3,0.00584615]
[1771679596534,0.59402578,1974.7,1974.3,0.60271732]
[1771679600435,0.59402578,1974.7,1974.3,0.00584615]
[1771679601437,0.59402578,1974.7,1974.1,0.59687117]
[1771679602338,0.59402578,1974.7,1974.1,0.6006971]
[1771679608435,0.59402578,1974.5,1974.1,0.6006971]
[1771679608739,0.59402578,1974.5,1974.1,0.00382593]
[1771679608935,0.59402578,1974.5,1973.8,0.59687117]
[1771679609842,0.59402578,1974.5,1973.8,0.60205784]
[1771679611245,0.59402578,1974.3,1973.8,0.60205784]
[1771679612042,0.59402578,1974.1,1973.8,0.60205784]
[1771679612544,0.59402578,1974.1,1973.8,0.00518667]
[1771679615142,0.59402578,1974.1,1973.5,0.59687117]
[1771679615544,0.59402578,1973.9,1973.4,0.59687117]
[1771679616050,0.59862586,1973.9,1973.4,0.60342874]
[1771679626159,0.00460008,1973.9,1973.4,0.60342874]
[1771679627356,0.55147847,1974.3,1973.5,0.58785951]
[1771679628457,0.55576056,1974.3,1973.5,0.58785951]
[1771679629353,0.00428209,1974.3,1973.5,0.58785951]
[1771679630861,0.55576056,1974.3,1973.5,0.58785951]
[1771679637370,0.00428209,1974.3,1973.5,0.58785951]
[1771679638067,0.55576056,1974.3,1973.5,0.58785951]
[1771679638961,0.00428209,1974.3,1973.5,0.58785951]
[1771679640265,0.00428209,1974.3,1973.5,4.8213268]
[1771679640570,0.00428209,1974.3,1973.6,0.58785951]
[1771679643768,0.55576056,1974.3,1973.6,0.58785951]
[1771679657183,0.55576056,1974.3,1973.7,0.58320095]
[1771679660387,0.00428209,1974.3,1973.7,0.58320095]
[1771679660778,0.00428209,1974.3,1973.7,1.64406734]
[1771679660983,1e-08,1974.3,1973.8,0.58320095]
[1771679663595,4.83058789,1974.6,1973.8,0.58320095]
[1771679663787,4.83058789,1974.6,1973.9,0.58320095]
[1771679664089,4.83058789,1974.6,1973.8,4.23346729]
[1771679664090,4.24615358,1974.8,1974.1,0.58320095]
[1771679664287,0.58443431,1974.7,1974.1,0.58320095]
[1771679664886,0.5881387,1974.7,1974.1,0.58320095]
[1771679665390,0.00370439,1974.7,1974.1,0.58320095]
[1771679665594,0.00370439,1974.7,1974.2,0.58320095]
[1771679665892,0.5881387,1974.7,1974.2,0.58320095]
[1771679666793,0.00370439,1974.7,1974.2,0.58320095]
[1771679668797,0.58443431,1975.0,1974.2,0.58320095]
[1771679669798,0.58869663,1975.0,1974.2,0.58320095]
[1771679670298,0.58869663,1975.0,1974.3,0.58320095]
[1771679678809,0.00426232,1975.0,1974.3,0.58320095]
[1771679679006,0.57609985,1975.0,1974.3,0.58320095]
[1771679683911,0.57609985,1975.0,1974.4,0.57303591]
[1771679696225,0.57183753,1974.9,1974.4,0.57303591]
[1771679700927,0.57183753,1974.9,1974.3,5.86559698]
[1771679700928,0.00426232,1975.0,1974.8,0.57303591]
[1771679701227,0.57183753,1975.2,1974.8,0.57303591]
[1771679701228,0.57183753,1975.2,1974.8,0.57836405]
[1771679701726,0.57183753,1975.1,1974.4,0.57303591]
[1771679702531,0.57662655,1975.1,1974.4,0.57910581]
[1771679718944,0.59100538,1974.9,1974.4,0.57910581]
[1771679719249,0.59100538,1974.7,1974.4,0.0060699]
[1771679722045,0.59100538,1974.7,1974.2,0.5826303]
[1771679722948,0.59100538,1974.7,1974.2,0.58841186]
[1771679745264,0.59100538,1974.7,1974.0,4.22378514]
[1771679745468,4.82873052,1974.7,1974.0,0.57878681]
[1771679745864,0.59100538,1974.7,1974.0,0.57878681]
[1771679746267,0.59100538,1974.7,1974.0,0.5836392]
[1771679766981,0.55472221,1974.6,1974.0,0.5836392]
[1771679767285,0.55472221,1974.5,1974.0,0.5836392]
[1771679767879,0.55472221,1974.5,1974.0,0.00485239]
[1771679768881,0.55472221,1974.5,1973.6,4.80008476]
[1771679769083,0.55472221,1974.5,1973.6,0.56241393]
[1771679769777,0.55472221,1974.5,1973.6,0.56778366]